[Event "24th Hoogeschool Zeeland 2022"]
[Site "Vlissingen"]
[Date "2022.08.13"]
[Round "9.24"]
[White "Van Wijk, Peter"]
[Black "Cordes, Hans-Joerg"]
[Result "0-1"]
[ECO "B90"]
[WhiteElo "2016"]
[BlackElo "2154"]
[Annotator "TA"]
[PlyCount "108"]
[EventDate "2022.08.05"]
[EventType "swiss"]
[EventCountry "NED"]
[SourceTitle "playchess.com"]
[Source "ChessBase"]
[SourceQuality "1"]
[TimeControl "40/5400+30:1800+30"]

{[%evp 17,108,28,33,19,20,23,35,29,40,17,20,20,60,41,43,24,45,28,41,32,41,32,67,67,92,0,34,34,29,37,39,41,147,114,112,112,103,51,112,43,57,0,0,0,0,0,0,0,0,0,0,0,0,0,0,0,0,0,0,0,0,0,0,-106,-102,-107,-88,-132,-139,-634,-604,-1314,-1228,-29976,-29977,-29976,-29977,-29982,-29983,-29985,-29986,-29987,-29988,-29988,-29989,-29989,-29988,-29988,-29989,-29990,-29989,-29989,-29988]} 1. e4 {[%emt 0:23:02]} c5 {[%emt 0:01:34]} 2. Nf3 {[%emt 0:00:04]} d6 {[%emt 0:00:08]} 3. d4 {[%emt 0:00:03]} cxd4 {[%emt 0:00:12]} 4. Nxd4 {[%emt 0:00:00]} Nf6 {[%emt 0:00:09]} 5. Nc3 {[%emt 0:00:04]} a6 {[%emt 0:00:05]} 6. f3 {[%emt 0:00:21]} e5 {[%emt 0:00:52]} 7. Nb3 {[%emt 0:01:18]} Be7 {[%emt 0:02:56]} 8. Be3 {[%emt 0:01:33]} h5 {[%emt 0:01:06]} 9. Qd2 {[%emt 0:07:35]} Be6 {[%emt 0:01:30]} 10. Nd5 {[%emt 0:01:25] B90: Sicilian Najdorf: Unusual White 6th moves, 6 Be3 Ng4 and 6 Be3 e5.} Bxd5 {[%emt 0:10:10]} 11. exd5 {[%emt 0:00:11]} Nbd7 {[%emt 0:00:09]} 12. c4 {[%emt 0:16:31] White is slightly better.} a5 {[%emt 0:05:03]} 13. Rc1 {[%emt 0:03:57]} b6 {[%emt 0:03:41]} 14. Be2 {[%emt 0:01:14]} Nc5 {[%emt 0:06:53]} ({Don't take} 14... a4 15. Na1 $16) 15. Nxc5 {[%emt 0:04:13]} bxc5 {[%emt 0:00:52] [#]} 16. Bd3 $146 {[%emt 0:00:15]} ({Predecessor:} 16. Bd1 Nd7 17. O-O f5 18. Bc2 O-O 19. a4 Rf7 20. b3 Nf8 21. Kh1 g6 22. Rce1 {1-0 (42) Warmerdam,M (2383)-Lahaye,R (2363) Netherlands 2016}) 16... Nd7 {[%emt 0:03:59]} 17. Rc3 {[%emt 0:03:50]} O-O {[%emt 0:03:01]} 18. O-O {[%emt 0:01:47]} f5 {[%emt 0:00:12]} 19. Rb3 {[%emt 0:01:10]} Rb8 {[%emt 0:03:07]} 20. Rxb8 {[%emt 0:00:30]} Nxb8 {[%emt 0:01:36]} 21. g4 {[%emt 0:14:24]} (21. b3 $16) 21... e4 {[%emt 0:20:47]} 22. fxe4 {[%emt 0:00:49]} fxg4 {[%emt 0:01:20]} 23. Rxf8+ {[%emt 0:06:57]} Bxf8 {[%emt 0:12:24]} 24. e5 {[%emt 0:06:39] [#] Strongly threatening e6.} dxe5 {[%emt 0:00:40]} ({Black should try} 24... Nd7 $1 $14) 25. Qf2 {[%emt 0:00:12]} Nd7 {[%emt 0:01:06]} 26. Qf5 {[%emt 0:00:33]} Nf6 {[%emt 0:02:12] Inhibits Qh7+.} 27. Qe6+ {[%emt 0:02:59]} Kh8 {[%emt 0:00:07] [#]} 28. Qxe5 {[%emt 0:00:01]} (28. Bg5 $1 $16) 28... Bd6 $14 {[%emt 0:00:37]} 29. Qe6 {[%emt 0:00:27]} (29. Qf5 $1 $14) 29... Qb8 $11 {[%emt 0:01:04][%csl LRb2,LRh2]} 30. Bg5 {[%emt 0:02:03] A strong pair of Bishops.} Qxb2 {[%emt 0:01:39]} 31. Qxd6 {[%emt 0:00:39] Qf8+ would kill now.} Qd4+ {[%emt 0:00:51]} 32. Kg2 {[%emt 0:00:23] White wants to mate with Bxf6.} Qxd3 {[%emt 0:00:09] Really sharp!} 33. Bxf6 {[%emt 0:00:43]} Qf3+ {[%emt 0:06:21]} 34. Kg1 {[%emt 0:00:03] White threatens Qf8+ and mate.} gxf6 {[%emt 0:05:35]} 35. Qxc5 {[%emt 0:00:14][%mdl 4096] Endgame KQ-KQ} Qd1+ {[%emt 0:01:00]} 36. Kg2 {[%emt 0:00:11]} Qc2+ {[%emt 0:02:48]} 37. Qf2 {[%emt 0:01:33]} Qe4+ {[%emt 0:00:08]} 38. Kg1 {[%emt 0:00:04]} Kg7 {[%emt 0:00:11]} 39. Qd2 {[%emt 0:01:26]} Qxc4 {[%emt 0:01:09] Hoping for ...Qc5+.} 40. Qxa5 {[%emt 0:00:00]} (40. d6 $1 $11 {was the only way to keep the balance.}) 40... Qd4+ $17 {[%emt 0:01:08]} 41. Kg2 {[%emt 0:02:00][%cal Od5d6]} Kg6 {[%emt 0:01:33] aiming for ...h4.} 42. Qb5 {[%emt 0:05:11]} Qe4+ {[%emt 0:03:45]} 43. Kg1 $2 {[%emt 0:00:39][%mdl 8192] Now White is beyond hope.} (43. Kf2 $17) 43... h4 $19 {[%emt 0:00:24] Threatens to win with ...h3.} 44. a4 {[%emt 0:04:54]} h3 {[%emt 0:02:22][%csl Gh3][%cal Re4g2]} 45. Kf2 {[%emt 0:00:04]} Qf3+ {[%emt 0:00:55] Black mates.} 46. Ke1 {[%emt 0:00:01]} Qh1+ {[%emt 0:00:17]} 47. Kd2 {[%emt 0:00:16]} Qxh2+ {[%emt 0:00:14]} 48. Kd3 {[%emt 0:01:28]} Qe5 {[%emt 0:02:28]} 49. Kc4 {[%emt 0:05:40]} Qe2+ {[%emt 0:01:39]} 50. Kc5 {[%emt 0:00:00]} Qxb5+ {[%emt 0:00:23]} 51. axb5 {[%emt 0:00:01]} h2 {[%emt 0:00:10]} 52. b6 {[%emt 0:00:51]} h1=Q {[%emt 0:00:11]} 53. b7 {[%emt 0:00:03]} Qb1 {[%emt 0:01:23]} 54. Kc6 {[%emt 0:00:02]} Kf7 {[%emt 0:23:15] Weighted Error Value: White=0.46/Black=0.08 (flawless)} 0-1